bitfinex-derivatives/quotes_ETHF0:USTF0_20210403
["timestamp","ask_amount","ask_price","bid_price","bid_amount"]
[1617470444713,1.6993,2038.0,2036.9,2.2536]
[1617470445713,1.6993,2038.0,2035.6,1.8982]
[1617470446112,3.7949,2038.0,2035.6,1.8982]
[1617470446313,2.0,2037.9,2035.6,1.8982]
[1617470446611,2.90695,2035.7,2035.6,1.8982]
[1617470446812,2.90695,2035.7,2035.4,2.90695]
[1617470447513,1.9257,2036.9,2035.4,2.90695]
[1617470447813,2.1578,2037.5,2035.4,5.14405]
[1617470448615,2.1578,2037.5,2036.3,2.90695]
[1617470448815,1.6993,2038.0,2036.3,4.93505]
[1617470450318,3.8195,2038.0,2035.5,67.0918]
[1617470450518,33.8195,2038.0,2034.1,5.00567087]
[1617470450719,4.73195,2035.6,2034.9,2.90695]
[1617470451619,4.73195,2035.6,2034.2,5.03490582]
[1617470452220,4.73195,2035.6,2034.1,5.03505402]
[1617470452620,1.825,2035.6,2034.8,2.90695]
[1617470453624,32.0,2037.6,2034.8,2.90695]
[1617470453823,30.0,2037.6,2034.8,2.90695]
[1617470454726,2.0,2037.5,2035.1,2.90695]
[1617470454927,4.2407,2037.5,2035.1,2.90695]
[1617470455226,13.0,2035.5,2035.1,2.90695]
[1617470456027,13.0,2035.5,2035.2,0.14382893]
[1617470456627,2.90695,2035.3,2035.2,0.14382893]
[1617470456829,2.90695,2035.3,2035.1,2.90695]
[1617470457228,4.65155,2035.3,2034.6,0.14382755]
[1617470457428,4.65155,2035.3,2034.5,5.02892099]
[1617470457635,4.65155,2035.3,2034.4,5.02921788]
[1617470457834,4.65155,2035.3,2034.6,0.14385084]
[1617470458134,4.65155,2035.3,2034.5,0.14385947]
[1617470458535,4.65155,2035.3,2034.1,0.14386211]
[1617470458738,1.7446,2035.3,2034.6,3.05081091]
[1617470459036,13.0,2035.5,2034.6,2.90695]
[1617470459838,13.0,2035.5,2034.7,0.14385096]
[1617470460238,13.0,2035.5,2034.7,2.29965096]
[1617470460638,13.0,2035.5,2035.3,2.90695]
[1617470461138,13.0,2035.5,2034.3,5.02959748]
[1617470461340,13.0,2035.5,2034.2,5.02965166]
[1617470461642,13.0,2035.5,2034.3,0.14384815]
[1617470462742,13.0,2035.5,2034.6,2.90695]
[1617470464645,2.90695,2034.7,2034.6,2.90695]
[1617470468346,13.0,2035.5,2034.6,2.90695]
[1617470468747,13.0,2035.5,2035.4,2.90695]
[1617470468951,13.0,2035.5,2035.4,1.7772]
[1617470469649,13.0,2035.5,2035.4,1.7379]
[1617470469851,13.0,2035.5,2033.8,5.03364282]
[1617470470049,15.0396,2035.5,2033.8,5.03364282]
[1617470470250,15.0396,2035.5,2033.6,5.0339174]
[1617470470549,15.0396,2035.5,2033.7,5.03377928]
[1617470470748,15.0396,2035.5,2034.6,2.90695]
[1617470472353,45.0396,2035.5,2034.6,2.90695]
[1617470472553,119.2975,2035.5,2033.4,5.03428848]
[1617470472753,119.2975,2035.5,2033.8,2.90695]
[1617470473253,2.0,2035.4,2033.8,2.90695]
[1617470473454,30.0,2035.3,2032.7,5.03591632]
[1617470473654,32.0,2035.3,2032.7,5.03591632]
[1617470473854,32.0,2035.3,2032.6,5.03612324]
[1617470474157,30.0,2035.3,2032.5,5.03648463]
[1617470474755,30.0,2035.3,2033.6,5.07148196]
[1617470475354,2.0,2035.2,2033.3,6.19925648]
[1617470475554,30.0,2035.1,2033.3,6.19925648]
[1617470475755,74.2957,2034.4,2032.7,6.20048324]
[1617470475955,106.1209,2034.4,2032.7,6.20048324]
[1617470476155,106.1209,2034.4,2032.5,6.20092324]
[1617470476456,2.0,2034.3,2032.0,7.32945777]
[1617470476757,2.0,2034.3,2030.2,11.27608888]
[1617470476758,78.006,2032.0,2031.1,7.3320643]
[1617470477158,78.006,2032.0,2030.4,11.36766275]
[1617470477456,78.006,2032.0,2030.4,2.90695]
[1617470478758,78.006,2032.0,2030.8,2.90695]
[1617470479361,78.006,2032.0,2028.4,8.3868304]
[1617470479560,78.006,2032.0,2028.3,8.38744656]
[1617470479859,78.006,2032.0,2028.6,8.38702505]
[1617470480261,78.006,2032.0,2028.7,22.04901834]
[1617470480461,78.006,2032.0,2029.0,82.2902]
[1617470480663,78.006,2032.0,2029.0,90.67543883]
[1617470480862,78.006,2032.0,2031.8,2.90695]
[1617470481667,30.0,2033.6,2031.8,2.90695]
[1617470482567,30.0,2035.4,2031.8,2.90695]
[1617470482767,44.1497,2035.4,2032.5,2.90695]
[1617470483767,60.0787,2034.6,2032.5,2.90695]
[1617470483967,30.0,2034.5,2031.4,13.2512]
[1617470484871,32.0,2034.5,2029.8,8.38267696]
[1617470485071,32.0,2034.5,2030.6,13.9078]
[1617470485872,32.0,2034.5,2030.9,5.05431484]
[1617470486071,2.0,2034.5,2030.9,5.05431484]
[1617470486271,64.4687,2033.3,2030.9,5.05431484]
[1617470486471,66.4084,2033.3,2030.9,5.05431484]
[1617470486671,66.4084,2033.3,2030.8,5.05462267]
[1617470486871,2.90695,2031.0,2030.8,5.05462267]
[1617470487074,5.28265,2031.0,2030.8,5.05462267]
[1617470487273,5.28265,2031.0,2030.7,5.05497632]
[1617470487973,5.28265,2031.0,2030.5,5.05547359]
[1617470488475,5.28265,2031.0,2030.4,5.05572101]
[1617470488675,5.28265,2031.0,2029.5,5.03125851]
[1617470488875,2.90695,2030.5,2030.3,2.90695]
[1617470489076,5.24135,2030.5,2030.3,2.90695]
[1617470490875,5.24135,2030.5,2029.3,5.03155542]
[1617470491275,5.24135,2030.5,2029.2,5.03199698]
[1617470491776,5.24135,2030.5,2029.0,5.03338456]
[1617470492075,5.24135,2030.5,2028.5,5.03406011]
[1617470492076,75.4609,2030.0,2028.5,5.03406011]
[1617470492380,75.4609,2030.0,2028.4,5.03422007]
[1617470492875,4.53385,2028.4,2028.3,5.0343142]
[1617470493076,4.53385,2028.4,2028.2,5.03457637]
[1617470493478,1.64939389,2028.4,2028.1,5.03465572]
[1617470493679,1.64939389,2028.4,2028.0,7.94165921]
[1617470494077,58.3426,2028.3,2028.0,7.94165921]
[1617470494481,58.3426,2028.3,2028.0,2.90695]
[1617470494679,58.3426,2028.3,2027.9,5.03502431]
[1617470494884,2.90695,2028.0,2027.7,2.90695]
[1617470495079,2.90695,2028.0,2027.6,5.03588782]
[1617470495280,2.90695,2028.0,2027.5,5.03606664]
[1617470495881,2.90695,2028.0,2027.5,0.982]
[1617470496082,2.90695,2028.0,2027.4,5.03596929]
[1617470496282,2.90695,2028.0,2027.1,5.03668003]
[1617470496686,2.90695,2028.0,2027.0,5.03680558]
[1617470496882,2.90695,2027.1,2027.0,5.03680558]
[1617470497084,5.05535,2027.1,2026.9,7.94411973]
[1617470497485,5.05535,2027.1,2026.5,6.15221632]
[1617470498283,5.05535,2027.1,2026.1,7.45259594]
[1617470498483,5.05535,2027.1,2025.3,8.39083607]
[1617470498685,5.05535,2027.1,2024.9,9.50961422]
[1617470498686,5.05535,2027.1,2025.1,7.27293825]
[1617470498884,2.90695,2025.2,2024.3,2.90695]
[1617470499083,4.95215,2025.2,2024.3,2.90695]
[1617470499783,4.95215,2025.2,2023.3,7.27808377]
[1617470499986,4.95215,2025.2,2022.7,7.27993282]
[1617470500585,55.6986,2024.8,2022.7,7.27993282]
[1617470500786,55.6986,2024.8,2024.0,16.0]
[1617470501684,2.0452,2025.2,2024.0,16.0]
[1617470502787,0.9912,2025.9,2024.0,16.0]
[1617470502987,0.9912,2025.9,2025.3,2.90695]
[1617470503188,0.9922,2026.9,2025.3,2.90695]
[1617470503388,0.9922,2026.9,2024.0,16.0]
[1617470504491,67.1558,2028.9,2024.3,55.4891]
[1617470504690,67.1558,2028.9,2024.3,57.4267]
[1617470504891,67.1558,2028.9,2027.4,2.90695]
[1617470505092,3.2484,2030.0,2026.7,1.6411]
[1617470505791,6.5214,2024.7,2024.3,1.9376]
[1617470505993,2.5133,2028.0,2024.1,13.3834]
[1617470506194,2.5133,2028.0,2024.1,15.7789]
[1617470506595,2.5133,2028.0,2024.1,29.8053]
[1617470506895,2.5133,2028.0,2027.6,2.90695]
[1617470507096,73.6208,2030.5,2027.6,2.90695]
[1617470508097,73.6208,2030.5,2027.6,5.39115]
[1617470508899,73.6208,2030.5,2027.9,2.90695]
[1617470510900,73.6208,2030.5,2030.1,2.90695]
[1617470511501,73.6208,2030.5,2028.9,2.0165]
[1617470512200,73.6208,2030.5,2027.7,13.8513]
[1617470512906,2.90695,2030.0,2029.8,2.90695]
[1617470513602,73.6208,2030.5,2029.8,2.90695]
[1617470514906,73.6208,2030.5,2030.4,2.90695]
[1617470515307,62.9682,2030.5,2030.4,2.90695]
[1617470515509,51.0718,2030.5,2030.4,2.90695]
[1617470515707,47.5248,2030.5,2030.4,2.90695]
[1617470515909,7.6268,2030.5,2030.4,2.90695]
[1617470516209,13.3296,2033.4,2030.4,2.90695]
[1617470517108,13.3296,2033.4,2031.6,5.37735]
[1617470517511,13.3296,2033.4,2031.7,70.0211]
[1617470519114,2.90695,2031.8,2031.6,2.90695]
[1617470519312,13.3296,2033.4,2031.6,2.90695]
[1617470520213,15.6114,2033.4,2030.7,66.4979]
[1617470520414,30.0,2033.3,2030.7,66.4979]
[1617470521016,5.40705,2030.8,2028.9,2.90695]
[1617470521218,10.0,2030.4,2027.2,62.8995]
[1617470522218,13.6232,2030.7,2027.2,62.8995]
[1617470523018,13.6232,2030.7,2028.1,2.90695]
[1617470524021,13.6232,2030.7,2027.2,64.7099]
[1617470524219,13.6232,2030.7,2027.2,62.8995]
[1617470525019,13.6232,2030.7,2024.0,19.5732]
[1617470525020,2.90695,2027.3,2024.0,19.5732]
[1617470525320,4.61805,2027.3,2025.6,70.7975]
[1617470525920,1.7111,2027.3,2025.6,70.7975]
[1617470526329,61.477,2029.2,2025.6,70.7975]
[1617470527021,2.90695,2028.0,2027.8,2.90695]
[1617470527222,1.9128,2029.2,2027.8,2.90695]
[1617470527423,1.9128,2029.2,2027.4,67.2224]
[1617470527723,1.9128,2029.2,2027.4,68.928]
[1617470528122,13.605,2029.3,2027.4,1.7056]
[1617470528924,13.605,2029.3,2026.2,1.8963]
[1617470529226,2.90695,2027.5,2026.2,1.8963]
[1617470529423,2.90695,2027.5,2025.9,79.6245]
[1617470529623,5.18025,2027.5,2025.6,0.02]
[1617470529824,5.18025,2027.5,2024.3,72.493]
[1617470530623,30.0,2027.4,2024.3,72.493]
[1617470531024,2.90695,2024.4,2024.3,72.493]
[1617470531225,2.90695,2024.4,2024.2,2.90695]
[1617470531424,2.90695,2024.4,2022.4,74.1833]
[1617470531625,0.01787296,2024.4,2022.4,74.1833]
[1617470532124,2.1493,2024.5,2022.4,74.1833]
[1617470532624,2.1493,2024.5,2022.3,16.0]
[1617470533024,2.1493,2024.5,2022.6,2.90695]
[1617470533425,2.1493,2024.5,2022.3,16.0]
[1617470534326,75.8436,2025.0,2022.3,16.0]
[1617470535226,75.8436,2025.0,2023.3,2.90695]
[1617470535725,1.7378,2025.2,2023.3,2.90695]
[1617470535927,14.0892,2026.0,2023.3,4.46105]
[1617470536932,14.0892,2026.0,2023.3,2.90695]
[1617470537132,2.90695,2023.7,2023.3,2.90695]
[1617470538026,2.90695,2023.7,2022.3,16.0]
[1617470538832,64.8542,2023.1,2022.3,16.0]
[1617470539028,66.7628,2023.1,2022.3,16.0]
[1617470539228,2.90695,2022.4,2022.3,14.7928]
[1617470539427,4.74395,2022.4,2022.3,14.7928]
[1617470539929,4.74395,2022.4,2022.3,13.8888]
[1617470540127,4.74395,2022.4,2022.3,12.8951]
[1617470540329,4.74395,2022.4,2022.3,12.399]
[1617470541429,4.74395,2022.4,2022.3,12.0518]
[1617470541929,4.74395,2022.4,2022.3,10.5551]
[1617470542630,4.74395,2022.4,2018.2,4.96700284]
[1617470542931,56.7209,2021.6,2018.1,4.96823728]
[1617470543132,58.3829,2021.6,2020.5,2.90695]
[1617470543332,58.3829,2021.6,2018.1,4.96823728]
[1617470544132,58.3829,2021.6,2017.4,4.97003871]
[1617470544432,59.386,2021.6,2017.3,4.97020912]
[1617470544632,58.3829,2021.6,2017.3,4.97020912]
[1617470545132,58.3829,2021.6,2018.9,2.90695]
[1617470545332,58.3829,2021.6,2015.2,18.14122781]
[1617470545734,59.3619,2021.6,2015.2,18.14122781]
[1617470546032,89.3619,2021.6,2015.6,0.9861]
[1617470546235,59.3619,2021.6,2015.6,0.9861]
[1617470547132,59.3619,2021.6,2018.3,2.90695]
[1617470547332,30.0,2021.5,2015.6,0.9861]
[1617470547632,75.604,2019.5,2015.6,0.9861]
[1617470547832,77.4245,2019.5,2015.6,0.9861]
[1617470549034,78.4058,2019.5,2015.0,4.93688644]
[1617470549234,2.90695,2018.1,2015.0,4.93688644]
[1617470550539,5.77265,2018.1,2015.0,4.93688644]
[1617470551138,2.90695,2017.3,2017.2,2.90695]
[1617470551737,2.90695,2017.3,2015.0,4.93688644]
[1617470552039,2.90695,2017.3,2014.6,0.9879]
[1617470552640,2.90695,2017.3,2014.4,7.15105819]
[1617470553239,2.90695,2017.3,2017.2,2.90695]
[1617470553640,13.9346,2019.4,2017.2,2.90695]
[1617470555344,13.9346,2019.4,2016.4,2.124]
[1617470557247,13.9346,2019.4,2019.3,2.90695]
[1617470557446,13.9346,2019.4,2019.3,5.07945]
[1617470558048,13.3694,2020.7,2019.3,5.07945]
[1617470558448,13.3694,2020.7,2018.8,2.3499]
[1617470559349,2.90695,2020.1,2019.9,2.90695]
[1617470559552,13.3694,2020.7,2019.9,5.19535]
[1617470560651,59.6954,2027.0,2020.1,73.368]
[1617470560850,32.0,2026.9,2020.1,73.368]
[1617470561051,45.4693,2026.9,2020.1,73.368]
[1617470561252,0.16131672,2026.8,2021.1,2.90695]
[1617470561453,0.16131672,2026.8,2020.1,73.368]
[1617470562454,11.0,2026.7,2020.1,73.368]
[1617470563354,11.0,2026.7,2022.9,2.90695]
[1617470563754,11.0,2026.7,2021.9,2.4292]
[1617470563959,13.4694934,2026.7,2021.9,2.4292]
[1617470565457,13.4694934,2026.7,2023.6,2.90695]
[1617470565656,13.4694934,2026.7,2021.9,2.4292]
[1617470565657,13.4694934,2026.7,2023.0,2.2987]
[1617470566056,11.0,2026.7,2023.0,2.2987]
[1617470567357,11.0,2026.7,2023.5,2.90695]
[1617470567558,11.0,2026.7,2023.5,5.35525]
[1617470567960,11.0,2026.7,2023.5,6.33765]
[1617470568961,11.0,2026.7,2023.5,5.35525]
[1617470569359,2.90695,2024.9,2024.8,2.90695]
[1617470569560,11.0,2026.7,2024.8,4.56355]
[1617470570661,11.0,2026.7,2024.8,2.90695]
[1617470570861,11.0,2026.7,2024.8,4.81605]
[1617470571362,2.90695,2025.6,2025.5,2.90695]
[1617470571564,2.90695,2025.6,2024.8,1.9091]
[1617470572866,11.0,2026.7,2024.8,1.9091]
[1617470573467,11.0,2026.7,2026.1,2.90695]
[1617470574569,11.0,2026.7,2025.4,2.2973]
[1617470575372,2.90695,2025.5,2024.9,2.90695]
[1617470577373,2.90695,2025.0,2024.9,2.90695]
[1617470578075,11.0,2026.7,2024.9,2.90695]
[1617470578275,11.0,2026.7,2024.9,5.37205]
[1617470579478,11.0,2026.7,2025.7,2.90695]
[1617470579977,11.0,2026.7,2024.0,2.2611]
[1617470580478,11.0,2026.7,2024.0,58.0388]
[1617470580678,11.0,2026.7,2024.0,59.0293]
[1617470581879,11.0,2026.7,2025.4,2.0767]
[1617470583181,2.8921,2026.7,2025.4,2.0767]
[1617470583581,2.8921,2026.7,2026.6,2.90695]
[1617470583793,2.8921,2026.7,2026.6,5.02395]
[1617470583982,2.0209,2026.7,2026.6,5.02395]
[1617470584288,13.9904,2028.9,2026.6,5.02395]
[1617470585585,13.9904,2028.9,2026.6,2.117]
[1617470587484,13.9904,2028.9,2028.6,2.90695]
[1617470587684,13.9904,2028.9,2027.9,1.5216]
[1617470589286,13.2455,2029.9,2027.9,1.5216]
[1617470589486,2.90695,2029.3,2029.1,2.90695]
[1617470589683,2.90695,2029.3,2029.1,5.15255]
[1617470589884,13.2455,2029.9,2029.1,5.15255]
[1617470591187,13.9156,2032.3,2029.1,5.15255]
[1617470591588,0.15077184,2032.2,2030.1,2.90695]
[1617470591787,0.15077184,2032.2,2030.1,5.06475]
[1617470592089,14.9123,2032.3,2030.1,2.1578]
[1617470593189,13.9156,2032.3,2030.1,2.1578]
[1617470593589,13.9156,2032.3,2030.9,2.90695]
[1617470594089,13.9156,2032.3,2030.1,2.1578]
[1617470594789,14.9088,2032.3,2030.1,2.1578]
[1617470595491,14.9088,2032.3,2031.5,2.90695]
[1617470595692,14.9088,2032.3,2030.8,1.9497]
[1617470595892,13.9156,2032.3,2030.8,1.9497]
[1617470597592,13.9156,2032.3,2032.1,2.90695]
[1617470598293,13.9156,2032.3,2031.3,1.8322]
[1617470599293,13.9156,2032.3,2030.7,66.7542]
[1617470599494,13.9156,2032.3,2030.2,0.9744]
[1617470599698,4.88655,2031.2,2029.2,78.2362]
[1617470599896,1.8239,2032.3,2027.7,0.9915]
[1617470600096,2.3865,2031.2,2028.3,78.2362]
[1617470600597,2.3865,2031.2,2028.3,79.2176]
[1617470601699,13.5166,2032.1,2030.5,2.90695]
[1617470603602,13.5166,2032.1,2032.0,2.90695]
[1617470605003,13.0175,2032.2,2032.0,2.90695]
[1617470607106,4.3118,2032.2,2032.0,2.90695]
[1617470607305,14.0971,2034.8,2032.0,5.35825]
[1617470607708,14.0971,2034.8,2033.5,2.90695]
[1617470609712,14.0971,2034.8,2034.4,2.90695]
[1617470611711,2.90695,2034.5,2027.7,12.7057]
[1617470611912,4.54105,2034.5,2027.7,12.7057]
[1617470612112,4.54105,2034.5,2031.3,63.8386]
[1617470613313,30.0,2034.4,2031.3,63.8386]
[1617470613615,30.0,2034.4,2031.5,2.90695]
[1617470614216,30.0,2034.4,2027.9,1.7805]
[1617470614517,109.7608,2034.4,2028.7,68.1002]
[1617470615616,109.7608,2034.4,2031.1,2.90695]
[1617470615820,30.0,2034.4,2031.1,2.90695]
[1617470616017,1.6341,2034.5,2031.1,2.90695]
[1617470616216,14.0971,2034.8,2031.1,2.90695]
[1617470617620,14.0971,2034.8,2030.9,73.2903]
[1617470617621,2.90695,2034.0,2033.6,2.90695]
[1617470618119,14.0971,2034.8,2033.6,2.90695]
[1617470620120,14.0971,2034.8,2032.8,59.3281]
[1617470621819,14.0971,2034.8,2034.5,2.90695]
[1617470622122,14.0971,2034.8,2034.5,5.04595]
[1617470622823,14.0971,2034.8,2034.5,2.139]
[1617470623021,14.0971,2034.8,2033.2,2.3896]
[1617470623722,14.0971,2034.8,2034.5,2.90695]
[1617470624123,14.0971,2034.8,2033.2,2.3896]
[1617470624422,15.9584,2034.8,2032.8,59.3281]
[1617470626125,15.9584,2034.8,2027.7,0.971]
[1617470626323,15.9584,2034.8,2031.1,64.6423]
[1617470627523,15.9584,2034.8,2031.1,66.9643]
[1617470627822,15.9584,2034.8,2033.4,2.90695]
[1617470628024,14.0971,2034.8,2033.4,2.90695]
[1617470629125,14.0971,2034.8,2032.6,70.6675]
[1617470629325,16.5173,2034.8,2027.8,12.6693]
[1617470629526,16.5173,2034.8,2030.6,62.3018]
[1617470629725,30.0,2034.7,2031.7,2.90695]
[1617470630226,30.0,2034.7,2030.6,62.3018]
[1617470631028,0.14450309,2034.6,2030.6,62.3018]
[1617470631229,30.0,2034.5,2030.6,62.3018]
[1617470631531,2.0,2034.4,2030.6,62.3018]
[1617470631827,5.22775,2030.7,2030.6,62.3018]
[1617470632027,5.22775,2030.7,2025.3,0.9902]
[1617470632227,5.22775,2030.7,2027.5,61.4902]
[1617470633530,13.6219,2032.1,2027.5,61.4902]
[1617470633730,13.6219,2032.1,2031.5,2.90695]
[1617470635634,13.579,2032.2,2031.5,2.90695]
[1617470635833,13.579,2032.2,2032.0,2.90695]
[1617470636132,13.579,2032.2,2032.0,5.02825]
[1617470637033,13.579,2032.2,2032.0,2.90695]
[1617470637732,15.8026,2032.2,2031.4,2.90695]
[1617470638031,15.8026,2032.2,2030.0,60.4154]
[1617470639732,15.8026,2032.2,2030.7,2.90695]
[1617470639933,13.579,2032.2,2030.7,2.90695]
[1617470641335,13.579,2032.2,2030.0,60.4154]
[1617470641635,15.6584,2032.2,2030.0,60.4154]
[1617470642035,45.6584,2032.2,2030.0,60.4154]
[1617470642237,5.29585,2030.7,2025.3,0.9869]
[1617470642536,5.29585,2030.7,2027.2,74.0688]
[1617470642937,13.5184,2030.6,2027.2,74.0688]
[1617470643936,13.5184,2030.6,2030.5,2.90695]
[1617470645337,8.0603,2030.6,2030.5,2.90695]
[1617470645636,14.0334,2031.8,2030.5,2.90695]
[1617470645844,14.0334,2031.8,2031.7,2.90695]
[1617470646337,16.4068,2031.8,2029.9,67.7645]
[1617470647838,16.4068,2031.8,2030.6,2.90695]
[1617470649340,14.0334,2031.8,2030.6,2.90695]
[1617470649841,14.0334,2031.8,2031.1,2.90695]
[1617470651842,14.0334,2031.8,2031.0,1.6316]
[1617470651843,14.0334,2031.8,2031.7,2.90695]
[1617470652044,14.0334,2031.8,2031.7,5.38475]
[1617470654246,14.0334,2031.8,2031.7,2.90695]
[1617470655948,2.90695,2033.0,2031.7,2.90695]
[1617470656250,13.0327,2034.1,2031.7,2.90695]
[1617470657951,13.0327,2034.1,2033.6,2.90695]
[1617470658152,13.0327,2034.1,2033.6,5.41835]
[1617470658351,13.0327,2034.1,2033.6,2.5114]
[1617470659058,13.0327,2034.1,2032.4,62.2141]
[1617470659251,14.5715,2034.1,2029.2,4.99839147]
[1617470659452,14.5715,2034.1,2030.4,62.2919]
[1617470659650,14.5715,2034.1,2030.4,64.6336]
[1617470659851,2.90695,2032.9,2032.7,2.90695]
[1617470660350,13.0327,2034.1,2032.7,2.90695]
[1617470660651,13.0327,2034.1,2032.7,4.53965]
[1617470661955,13.0327,2034.1,2033.5,2.90695]
[1617470662251,13.0327,2034.1,2032.7,1.6327]
[1617470663955,13.0327,2034.1,2034.0,2.90695]
[1617470664156,13.0327,2034.1,2034.0,4.43765]
[1617470665358,13.0327,2034.1,2032.7,1.6327]
[1617470665658,13.0327,2034.1,2032.1,58.0454]
[1617470666059,2.90695,2034.0,2033.8,2.90695]
[1617470666259,13.0327,2034.1,2033.8,4.51915]
[1617470668061,26.0,2034.6,2033.8,4.51915]
[1617470668260,26.0,2034.6,2033.8,73.21865]
[1617470669663,21.1137,2034.6,2033.8,73.21865]
[1617470670062,21.1137,2034.6,2034.5,4.50455]
[1617470671263,21.1137,2034.6,2034.5,2.90695]
[1617470671572,21.1137,2034.6,2034.5,5.37085]
[1617470672064,19.7286,2034.6,2034.5,5.37085]
[1617470672364,13.5854,2037.3,2034.5,5.37085]
[1617470672565,13.5854,2037.3,2035.5,68.2953]
[1617470673068,13.5854,2037.3,2036.0,5.10659575]
[1617470673268,13.5854,2037.3,2036.0,7.01919575]
[1617470673467,13.5854,2037.3,2036.2,5.10622661]
[1617470673968,13.5854,2037.3,2037.2,2.90695]
[1617470676172,13.5854,2037.3,2037.2,8.01059896]
[1617470677270,13.5854,2037.3,2037.2,2.90695]
[1617470677472,13.5854,2037.3,2037.1,6.23746375]
[1617470677871,13.5854,2037.3,2037.0,5.10417964]
[1617470678071,13.5854,2037.3,2037.2,2.90695]
[1617470678473,13.5854,2037.3,2037.2,2.5077]
[1617470679985,10.5463,2037.3,2037.2,5.41465]
[1617470680576,10.5463,2037.3,2037.2,2.90695]
[1617470681575,7.5297,2037.3,2037.2,2.90695]
[1617470681877,13.4967,2037.4,2037.2,2.90695]
[1617470684885,13.1231,2037.4,2037.2,2.90695]
[1617470685285,13.1231,2037.4,2037.2,5.39705]
[1617470685482,12.7492,2037.4,2037.2,5.39705]
[1617470686585,12.7492,2037.4,2037.2,2.90695]
[1617470687984,8.427,2037.4,2037.2,2.90695]
[1617470688185,8.427,2037.4,2037.2,5.01615]
[1617470689887,2.4054,2042.1,2038.7,57.9087]
[1617470690085,2.4054,2042.1,2039.6,2.90695]
[1617470690487,0.15914734,2042.0,2039.6,2.90695]
[1617470691088,0.15941786,2042.3,2039.6,2.90695]
[1617470691489,0.15950112,2041.9,2039.6,2.90695]
[1617470691690,0.15960242,2042.2,2039.6,2.90695]
[1617470692088,2.90695,2039.7,2039.6,2.90695]
[1617470693589,13.3001,2042.1,2039.6,2.90695]
[1617470693889,0.15854194,2042.0,2039.6,2.90695]
[1617470694089,0.15854194,2042.0,2038.7,57.9087]
[1617470694991,2.07684194,2042.0,2038.7,57.9087]
[1617470695290,0.16013824,2041.9,2038.7,57.9087]
[1617470696091,2.90695,2038.8,2038.7,60.81565]
[1617470696393,1.7193,2039.7,2038.7,2.90695]
[1617470697494,71.1503,2041.9,2038.7,2.90695]
[1617470698193,0.16026503,2041.8,2039.4,2.90695]
[1617470698394,13.98996503,2041.8,2039.4,2.90695]
[1617470698595,13.98996503,2041.8,2039.4,59.29975]
[1617470698899,0.16040401,2041.7,2039.4,59.29975]
[1617470700097,0.16040401,2041.7,2039.4,56.3928]
[1617470702100,0.16040401,2041.7,2040.8,2.90695]
[1617470702300,0.16040401,2041.7,2040.8,4.44335]
[1617470702503,0.16040401,2041.7,2040.9,76.8188]
[1617470702711,13.8297,2041.8,2040.9,76.8188]
[1617470704108,2.90695,2041.0,2040.9,76.8188]
[1617470705913,13.8297,2041.8,2040.9,76.8188]
[1617470706113,13.8297,2041.8,2041.6,2.90695]
[1617470706313,13.8297,2041.8,2041.6,5.05235]
[1617470708214,2.90695,2041.7,2041.6,5.05235]
[1617470708414,7.94765,2041.6,2040.9,78.598]
[1617470709916,7.94765,2041.6,2040.9,76.8188]
[1617470710617,1.6948,2041.4,2040.9,76.8188]
[1617470710915,1.6948,2041.4,2038.7,0.9754]
[1617470711214,1.6948,2041.4,2039.8,55.9378]
[1617470712216,2.90695,2039.9,2039.8,55.9378]
[1617470712416,5.27445,2039.9,2039.8,55.9378]
[1617470713119,5.27445,2039.9,2036.3,0.9686]
[1617470713316,5.27445,2039.9,2038.4,70.4921]
[1617470713517,13.9165,2039.8,2038.4,70.4921]
[1617470713817,27.8348,2039.8,2038.4,70.4921]
[1617470714117,2.90695,2038.8,2038.7,2.90695]
[1617470714318,4.94725,2038.8,2038.7,2.90695]
[1617470714920,2.0403,2038.8,2038.7,2.90695]
[1617470715322,27.8348,2039.8,2038.7,4.80775]
[1617470716223,27.8348,2039.8,2039.7,2.90695]
[1617470716924,27.8348,2039.8,2039.5,64.8395]
[1617470717831,30.0737,2039.8,2035.6,4.94951849]
[1617470718029,30.0737,2039.8,2038.3,65.9666]
[1617470718237,30.0737,2039.8,2038.5,2.90695]
[1617470719128,30.0737,2039.8,2038.3,65.9666]
[1617470719729,30.0737,2039.8,2034.5,4.95219004]
[1617470719928,30.0737,2039.8,2035.3,64.6207]
[1617470720228,30.0737,2039.8,2037.2,2.90695]
[1617470721329,30.0737,2039.8,2037.4,60.9188]
[1617470722333,4.64205,2037.8,2037.4,60.9188]
[1617470722531,4.64205,2037.8,2034.1,4.95332079]
[1617470722732,4.64205,2037.8,2036.0,75.2467]
[1617470723232,13.2275,2037.7,2036.0,75.2467]
[1617470724035,13.4608,2037.6,2036.0,75.2467]
[1617470724233,13.4608,2037.6,2037.1,2.90695]
[1617470725236,13.4608,2037.6,2037.2,62.7469]
[1617470726239,13.4608,2037.6,2037.5,2.90695]
[1617470726736,2.571,2040.3,2037.5,2.90695]
[1617470727137,2.571,2040.3,2038.8,79.1502]
[1617470727338,2.571,2040.3,2038.8,81.6515]
[1617470727537,0.9757,2043.6,2038.8,81.6515]
[1617470727737,7.618,2043.7,2038.8,81.6515]
[1617470728243,7.618,2043.7,2040.6,2.90695]
[1617470728442,7.618,2043.7,2040.6,4.55955]
[1617470728842,30.9926,2043.6,2040.6,1.6526]
[1617470729545,31.9755,2043.6,2038.8,81.6515]